DEPARTMENT FAMILY,ENTITY,DATE,EXPENSE TYPE,EXPENSE AREA,SUPPLIER,TRANSACTION NUMBER,AMOUNT,DESCRIPTION
DEPARTMENT OF HEALTH,SOUTH CENTRAL AMBULANCE NHS FOUNDATION TRUST,02/06/2023,IT,CHIEF EXECUTIVE AND THE BOARD,EUROPEAN ELECTRONIQUE LTD,2067787,57789.07,DATA LINES RENTAL & CALLS
DEPARTMENT OF HEALTH,SOUTH CENTRAL AMBULANCE NHS FOUNDATION TRUST,02/06/2023,FLEET SERVICES,OPERATIONS,SOUTH CENTRAL FLEET SERVICES LTD,2052470,16242.30,VEHICLE LEASE COSTS
DEPARTMENT OF HEALTH,SOUTH CENTRAL AMBULANCE NHS FOUNDATION TRUST,02/06/2023,FLEET SERVICES,OPERATIONS,SOUTH CENTRAL FLEET SERVICES LTD,2052470,420000.00,VEHICLE LEASE COSTS
DEPARTMENT OF HEALTH,SOUTH CENTRAL AMBULANCE NHS FOUNDATION TRUST,02/06/2023,FLEET SERVICES,OPERATIONS,SOUTH CENTRAL FLEET SERVICES LTD,2052470,4488.73,VEHICLE LEASE COSTS
DEPARTMENT OF HEALTH,SOUTH CENTRAL AMBULANCE NHS FOUNDATION TRUST,02/06/2023,FLEET SERVICES,OPERATIONS,SOUTH CENTRAL FLEET SERVICES LTD,2052470,10151.10,VEHICLE LEASE COSTS
DEPARTMENT OF HEALTH,SOUTH CENTRAL AMBULANCE NHS FOUNDATION TRUST,02/06/2023,FLEET SERVICES,OPERATIONS,SOUTH CENTRAL FLEET SERVICES LTD,2052471,27683.22,VEHICLE LEASE COSTS
DEPARTMENT OF HEALTH,SOUTH CENTRAL AMBULANCE NHS FOUNDATION TRUST,02/06/2023,FLEET SERVICES,OPERATIONS,SOUTH CENTRAL FLEET SERVICES LTD,2052471,2392.80,VEHICLE LEASE COSTS
DEPARTMENT OF HEALTH,SOUTH CENTRAL AMBULANCE NHS FOUNDATION TRUST,02/06/2023,FLEET SERVICES,OPERATIONS,SOUTH CENTRAL FLEET SERVICES LTD,2052471,6752.00,VEHICLE LEASE COSTS
DEPARTMENT OF HEALTH,SOUTH CENTRAL AMBULANCE NHS FOUNDATION TRUST,02/06/2023,FLEET SERVICES,OPERATIONS,SOUTH CENTRAL FLEET SERVICES LTD,2052471,3910.75,VEHICLE LEASE COSTS
DEPARTMENT OF HEALTH,SOUTH CENTRAL AMBULANCE NHS FOUNDATION TRUST,02/06/2023,CONSULTANCY,OPERATIONS,INTERGRAPH UK LTD,2059044,29385.10,SYSTEM DEVELOPEMENT 
DEPARTMENT OF HEALTH,SOUTH CENTRAL AMBULANCE NHS FOUNDATION TRUST,08/06/2023,RENTS,"FINANCE, ESTATES AND PROCUREMENT",COLUMBIA THREADNEEDLE INVESTMENTS,2072592,90000.00,RENT - WERC
DEPARTMENT OF HEALTH,SOUTH CENTRAL AMBULANCE NHS FOUNDATION TRUST,02/06/2023,IT,ICT,ADVANCED,2061565,220201.74,SOFTWARE AND MAINTENANCE
DEPARTMENT OF HEALTH,SOUTH CENTRAL AMBULANCE NHS FOUNDATION TRUST,02/06/2023,MEDICAL CONSUMABLES,OPERATIONS,CRITICAL HEALTHCARE LTD,2061518,26294.40,MEDICAL CONSUMABLES
DEPARTMENT OF HEALTH,SOUTH CENTRAL AMBULANCE NHS FOUNDATION TRUST,02/06/2023,MEDICAL CONSUMABLES,OPERATIONS,CRITICAL HEALTHCARE LTD,2061518,2952.00,MEDICAL CONSUMABLES
DEPARTMENT OF HEALTH,SOUTH CENTRAL AMBULANCE NHS FOUNDATION TRUST,02/06/2023,MEDICAL CONSUMABLES,OPERATIONS,CRITICAL HEALTHCARE LTD,2061518,2952.00,MEDICAL CONSUMABLES
DEPARTMENT OF HEALTH,SOUTH CENTRAL AMBULANCE NHS FOUNDATION TRUST,08/06/2023,PAYROLL SERVICES,"FINANCE, ESTATES AND PROCUREMENT",NHS SHARED BUSINESS SERVICES LTD,2061536,25950.00,PAYROLL VOLUME
DEPARTMENT OF HEALTH,SOUTH CENTRAL AMBULANCE NHS FOUNDATION TRUST,02/06/2023,PTS PRIVATE PROVIDERS,NON EMERGENCY SERVICES,STREAMLINE (KENT) LTD,2061582,35319.59,PP HOURS
DEPARTMENT OF HEALTH,SOUTH CENTRAL AMBULANCE NHS FOUNDATION TRUST,02/06/2023,PTS PRIVATE PROVIDERS,NON EMERGENCY SERVICES,ELITE MEDICAL AND AMBULANCE SERVICE LTD,2061587,41800.44,PP HOURS
DEPARTMENT OF HEALTH,SOUTH CENTRAL AMBULANCE NHS FOUNDATION TRUST,08/06/2023,IT,ICT,BYTES SOFTWARE SERVICES LTD,2061598,35345.81,COMPUTER SOFTWARE LICENCE FEE
DEPARTMENT OF HEALTH,SOUTH CENTRAL AMBULANCE NHS FOUNDATION TRUST,08/06/2023,ENGINEERING/MAINT-EXTERNAL,"FINANCE, ESTATES AND PROCUREMENT",J.TOMLINSON - INTEGRATED BUILDING SOLUTIONS,2070160,50829.82,BUILDING MAINTENANCE CONTRACT
DEPARTMENT OF HEALTH,SOUTH CENTRAL AMBULANCE NHS FOUNDATION TRUST,08/06/2023,IT,ICT,CLASS PUBLISHING LTD,2062777,64767.60,ONLINE PUBLICATIONS
DEPARTMENT OF HEALTH,SOUTH CENTRAL AMBULANCE NHS FOUNDATION TRUST,08/06/2023,IT,ICT,CLASS PUBLISHING LTD,2062777,4200.00,ONLINE PUBLICATIONS
DEPARTMENT OF HEALTH,SOUTH CENTRAL AMBULANCE NHS FOUNDATION TRUST,08/06/2023,BUILDING WORKS,"FINANCE, ESTATES AND PROCUREMENT",QUAYSTONE PROJECTS LTD,2063488,52882.99,SLUICE PROJECT
DEPARTMENT OF HEALTH,SOUTH CENTRAL AMBULANCE NHS FOUNDATION TRUST,02/06/2023,PRIVATE AMBULANCE PROVIDERS,OPERATIONS,ELITE EVENT MEDICAL SERVICES LTD,2064045,194609.50,PP HOURS
DEPARTMENT OF HEALTH,SOUTH CENTRAL AMBULANCE NHS FOUNDATION TRUST,08/06/2023,PRIVATE AMBULANCE PROVIDERS,OPERATIONS,ELITE EVENT MEDICAL SERVICES LTD,2064046,192767.50,PP HOURS
DEPARTMENT OF HEALTH,SOUTH CENTRAL AMBULANCE NHS FOUNDATION TRUST,08/06/2023,PRIVATE AMBULANCE PROVIDERS,OPERATIONS,ELITE EVENT MEDICAL SERVICES LTD,2064046,7015.90,PP HOURS
DEPARTMENT OF HEALTH,SOUTH CENTRAL AMBULANCE NHS FOUNDATION TRUST,02/06/2023,PRIVATE AMBULANCE PROVIDERS,OPERATIONS,ENHANCED CARE SERVICES,2064047,42206.70,PP HOURS
DEPARTMENT OF HEALTH,SOUTH CENTRAL AMBULANCE NHS FOUNDATION TRUST,08/06/2023,PRIVATE AMBULANCE PROVIDERS,OPERATIONS,ENHANCED CARE SERVICES,2064048,40965.25,PP HOURS
DEPARTMENT OF HEALTH,SOUTH CENTRAL AMBULANCE NHS FOUNDATION TRUST,08/06/2023,PRIVATE AMBULANCE PROVIDERS,OPERATIONS,MEDI4 AMBULANCE SERVICES LTD,2064054,34945.01,PP HOURS
DEPARTMENT OF HEALTH,SOUTH CENTRAL AMBULANCE NHS FOUNDATION TRUST,02/06/2023,PRIVATE AMBULANCE PROVIDERS,OPERATIONS,MEDICARE EMS GROUP UK LTD,2064055,73166.23,PP HOURS
DEPARTMENT OF HEALTH,SOUTH CENTRAL AMBULANCE NHS FOUNDATION TRUST,08/06/2023,PRIVATE AMBULANCE PROVIDERS,OPERATIONS,MEDICARE EMS GROUP UK LTD,2064056,71165.99,PP HOURS
DEPARTMENT OF HEALTH,SOUTH CENTRAL AMBULANCE NHS FOUNDATION TRUST,02/06/2023,PRIVATE AMBULANCE PROVIDERS,OPERATIONS,PHOENIX RESPONSE SERVICES LTD,2064057,60304.56,PP HOURS
DEPARTMENT OF HEALTH,SOUTH CENTRAL AMBULANCE NHS FOUNDATION TRUST,08/06/2023,PRIVATE AMBULANCE PROVIDERS,OPERATIONS,PHOENIX RESPONSE SERVICES LTD,2064058,52886.65,PP HOURS
DEPARTMENT OF HEALTH,SOUTH CENTRAL AMBULANCE NHS FOUNDATION TRUST,02/06/2023,PRIVATE AMBULANCE PROVIDERS,OPERATIONS,SOUTHERN MEDICAL RESCUE,2064060,48274.67,PP HOURS
DEPARTMENT OF HEALTH,SOUTH CENTRAL AMBULANCE NHS FOUNDATION TRUST,08/06/2023,PRIVATE AMBULANCE PROVIDERS,OPERATIONS,SOUTHERN MEDICAL RESCUE,2064061,44333.02,PP HOURS
DEPARTMENT OF HEALTH,SOUTH CENTRAL AMBULANCE NHS FOUNDATION TRUST,02/06/2023,VEHICLE LEASING,OPERATIONS,SOUTH CENTRAL FLEET SERVICES LTD,2064063,67273.37,VEHICLE LEASE COSTS
DEPARTMENT OF HEALTH,SOUTH CENTRAL AMBULANCE NHS FOUNDATION TRUST,02/06/2023,FLEET SERVICES,OPERATIONS,SOUTH CENTRAL FLEET SERVICES LTD,2064064,27683.22,VEHICLE LEASE COSTS
DEPARTMENT OF HEALTH,SOUTH CENTRAL AMBULANCE NHS FOUNDATION TRUST,02/06/2023,FLEET SERVICES,OPERATIONS,SOUTH CENTRAL FLEET SERVICES LTD,2064064,2392.80,VEHICLE LEASE COSTS
DEPARTMENT OF HEALTH,SOUTH CENTRAL AMBULANCE NHS FOUNDATION TRUST,02/06/2023,FLEET SERVICES,OPERATIONS,SOUTH CENTRAL FLEET SERVICES LTD,2064064,6752.00,VEHICLE LEASE COSTS
DEPARTMENT OF HEALTH,SOUTH CENTRAL AMBULANCE NHS FOUNDATION TRUST,02/06/2023,FLEET SERVICES,OPERATIONS,SOUTH CENTRAL FLEET SERVICES LTD,2064064,3910.75,VEHICLE LEASE COSTS
DEPARTMENT OF HEALTH,SOUTH CENTRAL AMBULANCE NHS FOUNDATION TRUST,08/06/2023,PTS PRIVATE PROVIDERS,NON EMERGENCY SERVICES,ELITE MEDICAL AND AMBULANCE SERVICE LTD,2064877,42583.22,PP HOURS
DEPARTMENT OF HEALTH,SOUTH CENTRAL AMBULANCE NHS FOUNDATION TRUST,12/06/2023,FLEET SERVICES,OPERATIONS,SOUTH CENTRAL FLEET SERVICES LTD,2064915,355254.53,VEHICLE LEASE COSTS
DEPARTMENT OF HEALTH,SOUTH CENTRAL AMBULANCE NHS FOUNDATION TRUST,12/06/2023,FLEET SERVICES,OPERATIONS,SOUTH CENTRAL FLEET SERVICES LTD,2064915,3384.65,VEHICLE LEASE COSTS
DEPARTMENT OF HEALTH,SOUTH CENTRAL AMBULANCE NHS FOUNDATION TRUST,12/06/2023,FLEET SERVICES,OPERATIONS,SOUTH CENTRAL FLEET SERVICES LTD,2064915,10550.59,VEHICLE LEASE COSTS
DEPARTMENT OF HEALTH,SOUTH CENTRAL AMBULANCE NHS FOUNDATION TRUST,02/06/2023,PTS PRIVATE PROVIDERS,NON EMERGENCY SERVICES,F.A.S.T. AMBULANCE SERVICE LTD,2066815,28790.13,PP HOURS
DEPARTMENT OF HEALTH,SOUTH CENTRAL AMBULANCE NHS FOUNDATION TRUST,08/06/2023,PTS PRIVATE PROVIDERS,NON EMERGENCY SERVICES,STREAMLINE (KENT) LTD,2066827,36313.36,PP HOURS
DEPARTMENT OF HEALTH,SOUTH CENTRAL AMBULANCE NHS FOUNDATION TRUST,02/06/2023,VEHICLE HIRE,NON EMERGENCY SERVICES,ALLTRUCK PLC,2067714,37440.00,VEHICLE LEASE COSTS
DEPARTMENT OF HEALTH,SOUTH CENTRAL AMBULANCE NHS FOUNDATION TRUST,02/06/2023,VEHICLE HIRE,NON EMERGENCY SERVICES,ALLTRUCK PLC,2067717,37440.00,VEHICLE LEASE COSTS
DEPARTMENT OF HEALTH,SOUTH CENTRAL AMBULANCE NHS FOUNDATION TRUST,02/06/2023,VEHICLE HIRE,NON EMERGENCY SERVICES,ALLTRUCK PLC,2067719,37440.00,VEHICLE LEASE COSTS
DEPARTMENT OF HEALTH,SOUTH CENTRAL AMBULANCE NHS FOUNDATION TRUST,02/06/2023,VEHICLE HIRE,NON EMERGENCY SERVICES,ALLTRUCK PLC,2067721,22464.00,VEHICLE LEASE COSTS
DEPARTMENT OF HEALTH,SOUTH CENTRAL AMBULANCE NHS FOUNDATION TRUST,02/06/2023,VEHICLE HIRE,NON EMERGENCY SERVICES,ALLTRUCK PLC,2067721,7488.00,VEHICLE LEASE COSTS
DEPARTMENT OF HEALTH,SOUTH CENTRAL AMBULANCE NHS FOUNDATION TRUST,08/06/2023,TEMPS CLINICAL,OPERATIONS,"NHS SOUTH, CENTRAL & WEST CSU",2069382,145191.20,GPCAS PROJECT
DEPARTMENT OF HEALTH,SOUTH CENTRAL AMBULANCE NHS FOUNDATION TRUST,02/06/2023,TAXI HIRE - PTS,NON EMERGENCY SERVICES,SOUTHERN TAXIS (BRIGHTON) LTD T/A CITY CABS BRIGHTON,2068214,25696.20,PP HOURS
DEPARTMENT OF HEALTH,SOUTH CENTRAL AMBULANCE NHS FOUNDATION TRUST,15/06/2023,TEMPS CLINICAL,OPERATIONS,PHL - PARTNERING HEALTH LTD,2069383,571478.00,URGENT CARE SUB-CONTRACT
DEPARTMENT OF HEALTH,SOUTH CENTRAL AMBULANCE NHS FOUNDATION TRUST,15/06/2023,TEMPS CLINICAL,OPERATIONS,FRIMLEY PRIMARY CARE SERVICE,2069384,647943.00,URGENT CARE SUB-CONTRACT
DEPARTMENT OF HEALTH,SOUTH CENTRAL AMBULANCE NHS FOUNDATION TRUST,02/06/2023,ACCIDENT REPAIRS,OPERATIONS,CAMBRIDGE GARAGE (P'MOUTH) LTD,2068284,34790.60,VEHICLE REPAIRS
DEPARTMENT OF HEALTH,SOUTH CENTRAL AMBULANCE NHS FOUNDATION TRUST,15/06/2023,PAYROLL SERVICES,"FINANCE, ESTATES AND PROCUREMENT",NHS SHARED BUSINESS SERVICES LTD,2069358,47084.95,PAYROLL VOLUME VARIANCES
DEPARTMENT OF HEALTH,SOUTH CENTRAL AMBULANCE NHS FOUNDATION TRUST,15/06/2023,PRIVATE AMBULANCE PROVIDERS,OPERATIONS,ELITE EVENT MEDICAL SERVICES LTD,2069361,186443.50,PP HOURS
DEPARTMENT OF HEALTH,SOUTH CENTRAL AMBULANCE NHS FOUNDATION TRUST,15/06/2023,PRIVATE AMBULANCE PROVIDERS,OPERATIONS,ENHANCED CARE SERVICES,2069362,42518.48,PP HOURS
DEPARTMENT OF HEALTH,SOUTH CENTRAL AMBULANCE NHS FOUNDATION TRUST,15/06/2023,PRIVATE AMBULANCE PROVIDERS,OPERATIONS,MEDICARE EMS GROUP UK LTD,2069366,69529.68,PP HOURS
DEPARTMENT OF HEALTH,SOUTH CENTRAL AMBULANCE NHS FOUNDATION TRUST,15/06/2023,PRIVATE AMBULANCE PROVIDERS,OPERATIONS,PHOENIX RESPONSE SERVICES LTD,2069367,27293.79,PP HOURS
DEPARTMENT OF HEALTH,SOUTH CENTRAL AMBULANCE NHS FOUNDATION TRUST,15/06/2023,PRIVATE AMBULANCE PROVIDERS,OPERATIONS,PHOENIX RESPONSE SERVICES LTD,2069367,35373.45,PP HOURS
DEPARTMENT OF HEALTH,SOUTH CENTRAL AMBULANCE NHS FOUNDATION TRUST,15/06/2023,PRIVATE AMBULANCE PROVIDERS,OPERATIONS,SOUTHERN MEDICAL RESCUE,2069369,66657.54,PP HOURS
DEPARTMENT OF HEALTH,SOUTH CENTRAL AMBULANCE NHS FOUNDATION TRUST,15/06/2023,BUILDING MAINTENANCE CONT,"FINANCE, ESTATES AND PROCUREMENT",J.TOMLINSON - INTEGRATED BUILDING SOLUTIONS,2070170,95981.61,BUILDING MAINTENANCE CONTRACT
DEPARTMENT OF HEALTH,SOUTH CENTRAL AMBULANCE NHS FOUNDATION TRUST,15/06/2023,IT,ICT,TET LIMITED,2070716,118281.86,SYSTEM SUPPORT
DEPARTMENT OF HEALTH,SOUTH CENTRAL AMBULANCE NHS FOUNDATION TRUST,02/06/2023,LEASE VEHICLE MAINTENANCE,NON EMERGENCY SERVICES,ADAMS MOREY LIMITED,2069436,81586.32,ELECTRIC VEHICLE
DEPARTMENT OF HEALTH,SOUTH CENTRAL AMBULANCE NHS FOUNDATION TRUST,02/06/2023,LEASE VEHICLE MAINTENANCE,NON EMERGENCY SERVICES,ADAMS MOREY LIMITED,2069436,240.00,ELECTRIC VEHICLE
DEPARTMENT OF HEALTH,SOUTH CENTRAL AMBULANCE NHS FOUNDATION TRUST,02/06/2023,LEASE VEHICLE MAINTENANCE,NON EMERGENCY SERVICES,ADAMS MOREY LIMITED,2069436,55.00,ELECTRIC VEHICLE
DEPARTMENT OF HEALTH,SOUTH CENTRAL AMBULANCE NHS FOUNDATION TRUST,15/06/2023,PTS PRIVATE PROVIDERS,NON EMERGENCY SERVICES,F.A.S.T. AMBULANCE SERVICE LTD,2069452,25440.73,PP HOURS
DEPARTMENT OF HEALTH,SOUTH CENTRAL AMBULANCE NHS FOUNDATION TRUST,15/06/2023,PTS PRIVATE PROVIDERS,NON EMERGENCY SERVICES,F.A.S.T. AMBULANCE SERVICE LTD,2069453,26830.54,PP HOURS
DEPARTMENT OF HEALTH,SOUTH CENTRAL AMBULANCE NHS FOUNDATION TRUST,15/06/2023,PTS PRIVATE PROVIDERS,NON EMERGENCY SERVICES,STREAMLINE (KENT) LTD,2069457,39745.48,PP HOURS
DEPARTMENT OF HEALTH,SOUTH CENTRAL AMBULANCE NHS FOUNDATION TRUST,02/06/2023,PTS PRIVATE PROVIDERS,NON EMERGENCY SERVICES,MEDI4 AMBULANCE SERVICES LTD,2069458,29886.49,PP HOURS
DEPARTMENT OF HEALTH,SOUTH CENTRAL AMBULANCE NHS FOUNDATION TRUST,15/06/2023,PTS PRIVATE PROVIDERS,NON EMERGENCY SERVICES,MEDI4 AMBULANCE SERVICES LTD,2069460,31252.67,PP HOURS
DEPARTMENT OF HEALTH,SOUTH CENTRAL AMBULANCE NHS FOUNDATION TRUST,08/06/2023,PTS PRIVATE PROVIDERS,NON EMERGENCY SERVICES,MEDI4 AMBULANCE SERVICES LTD,2069463,32905.19,PP HOURS
DEPARTMENT OF HEALTH,SOUTH CENTRAL AMBULANCE NHS FOUNDATION TRUST,22/06/2023,MAKE READY SERVICES,CLINICAL SERVICES,CHURCHILL CONTRACT SERVICES LTD,2077663,30970.09,MAKE READY SERVICES
DEPARTMENT OF HEALTH,SOUTH CENTRAL AMBULANCE NHS FOUNDATION TRUST,22/06/2023,MAKE READY SERVICES,CLINICAL SERVICES,CHURCHILL CONTRACT SERVICES LTD,2077663,20172.47,MAKE READY SERVICES
DEPARTMENT OF HEALTH,SOUTH CENTRAL AMBULANCE NHS FOUNDATION TRUST,22/06/2023,MAKE READY SERVICES,CLINICAL SERVICES,CHURCHILL CONTRACT SERVICES LTD,2077663,82732.93,MAKE READY SERVICES
DEPARTMENT OF HEALTH,SOUTH CENTRAL AMBULANCE NHS FOUNDATION TRUST,22/06/2023,MAKE READY SERVICES,CLINICAL SERVICES,CHURCHILL CONTRACT SERVICES LTD,2077663,33371.18,MAKE READY SERVICES
DEPARTMENT OF HEALTH,SOUTH CENTRAL AMBULANCE NHS FOUNDATION TRUST,22/06/2023,MAKE READY SERVICES,CLINICAL SERVICES,CHURCHILL CONTRACT SERVICES LTD,2077663,9303.25,MAKE READY SERVICES
DEPARTMENT OF HEALTH,SOUTH CENTRAL AMBULANCE NHS FOUNDATION TRUST,22/06/2023,MAKE READY SERVICES,CLINICAL SERVICES,CHURCHILL CONTRACT SERVICES LTD,2077663,8715.84,MAKE READY SERVICES
DEPARTMENT OF HEALTH,SOUTH CENTRAL AMBULANCE NHS FOUNDATION TRUST,22/06/2023,MAKE READY SERVICES,CLINICAL SERVICES,CHURCHILL CONTRACT SERVICES LTD,2077663,11080.45,MAKE READY SERVICES
DEPARTMENT OF HEALTH,SOUTH CENTRAL AMBULANCE NHS FOUNDATION TRUST,22/06/2023,MAKE READY SERVICES,CLINICAL SERVICES,CHURCHILL CONTRACT SERVICES LTD,2077663,13782.20,MAKE READY SERVICES
DEPARTMENT OF HEALTH,SOUTH CENTRAL AMBULANCE NHS FOUNDATION TRUST,22/06/2023,MAKE READY SERVICES,CLINICAL SERVICES,CHURCHILL CONTRACT SERVICES LTD,2077663,8723.29,MAKE READY SERVICES
DEPARTMENT OF HEALTH,SOUTH CENTRAL AMBULANCE NHS FOUNDATION TRUST,22/06/2023,MAKE READY SERVICES,CLINICAL SERVICES,CHURCHILL CONTRACT SERVICES LTD,2077663,10620.90,MAKE READY SERVICES
DEPARTMENT OF HEALTH,SOUTH CENTRAL AMBULANCE NHS FOUNDATION TRUST,22/06/2023,MAKE READY SERVICES,CLINICAL SERVICES,CHURCHILL CONTRACT SERVICES LTD,2077663,53535.34,MAKE READY SERVICES
DEPARTMENT OF HEALTH,SOUTH CENTRAL AMBULANCE NHS FOUNDATION TRUST,22/06/2023,MAKE READY SERVICES,CLINICAL SERVICES,CHURCHILL CONTRACT SERVICES LTD,2077663,10620.90,MAKE READY SERVICES
DEPARTMENT OF HEALTH,SOUTH CENTRAL AMBULANCE NHS FOUNDATION TRUST,22/06/2023,MAKE READY SERVICES,CLINICAL SERVICES,CHURCHILL CONTRACT SERVICES LTD,2077663,18713.62,MAKE READY SERVICES
DEPARTMENT OF HEALTH,SOUTH CENTRAL AMBULANCE NHS FOUNDATION TRUST,22/06/2023,MAKE READY SERVICES,CLINICAL SERVICES,CHURCHILL CONTRACT SERVICES LTD,2077663,10620.90,MAKE READY SERVICES
DEPARTMENT OF HEALTH,SOUTH CENTRAL AMBULANCE NHS FOUNDATION TRUST,22/06/2023,MAKE READY SERVICES,CLINICAL SERVICES,CHURCHILL CONTRACT SERVICES LTD,2077663,11292.78,MAKE READY SERVICES
DEPARTMENT OF HEALTH,SOUTH CENTRAL AMBULANCE NHS FOUNDATION TRUST,22/06/2023,MAKE READY SERVICES,CLINICAL SERVICES,CHURCHILL CONTRACT SERVICES LTD,2077663,28191.08,MAKE READY SERVICES
DEPARTMENT OF HEALTH,SOUTH CENTRAL AMBULANCE NHS FOUNDATION TRUST,22/06/2023,MAKE READY SERVICES,CLINICAL SERVICES,CHURCHILL CONTRACT SERVICES LTD,2077663,353.38,MAKE READY SERVICES
DEPARTMENT OF HEALTH,SOUTH CENTRAL AMBULANCE NHS FOUNDATION TRUST,22/06/2023,MAKE READY SERVICES,CLINICAL SERVICES,CHURCHILL CONTRACT SERVICES LTD,2077663,3038.00,MAKE READY SERVICES
DEPARTMENT OF HEALTH,SOUTH CENTRAL AMBULANCE NHS FOUNDATION TRUST,22/06/2023,MAKE READY SERVICES,CLINICAL SERVICES,CHURCHILL CONTRACT SERVICES LTD,2077663,3154.42,MAKE READY SERVICES
DEPARTMENT OF HEALTH,SOUTH CENTRAL AMBULANCE NHS FOUNDATION TRUST,22/06/2023,GENERAL CONSUMABLES,NON EMERGENCY SERVICES,CHURCHILL CONTRACT SERVICES LTD,2077663,1652.44,MAKE READY SERVICES
DEPARTMENT OF HEALTH,SOUTH CENTRAL AMBULANCE NHS FOUNDATION TRUST,22/06/2023,TAXI HIRE - PTS,NON EMERGENCY SERVICES,STREAMLINE POOLE PRC TAXIS,2071196,39121.84,PP HOURS
DEPARTMENT OF HEALTH,SOUTH CENTRAL AMBULANCE NHS FOUNDATION TRUST,22/06/2023,PTS PRIVATE PROVIDERS,NON EMERGENCY SERVICES,ELITE MEDICAL AND AMBULANCE SERVICE LTD,2071204,47581.54,PP HOURS
DEPARTMENT OF HEALTH,SOUTH CENTRAL AMBULANCE NHS FOUNDATION TRUST,15/06/2023,PTS PRIVATE PROVIDERS,NON EMERGENCY SERVICES,ELITE MEDICAL AND AMBULANCE SERVICE LTD,2071205,48005.95,PP HOURS
DEPARTMENT OF HEALTH,SOUTH CENTRAL AMBULANCE NHS FOUNDATION TRUST,08/06/2023,TAXI HIRE - PTS,NON EMERGENCY SERVICES,MY LOCAL CAR.UK LTD,2072616,24000.00,PP HOURS
DEPARTMENT OF HEALTH,SOUTH CENTRAL AMBULANCE NHS FOUNDATION TRUST,08/06/2023,TAXI HIRE - PTS,NON EMERGENCY SERVICES,MY LOCAL CAR.UK LTD,2072616,14341.80,PP HOURS
DEPARTMENT OF HEALTH,SOUTH CENTRAL AMBULANCE NHS FOUNDATION TRUST,22/06/2023,PRIVATE AMBULANCE PROVIDERS,OPERATIONS,ELITE EVENT MEDICAL SERVICES LTD,2072690,191830.22,PP HOURS
DEPARTMENT OF HEALTH,SOUTH CENTRAL AMBULANCE NHS FOUNDATION TRUST,22/06/2023,PRIVATE AMBULANCE PROVIDERS,OPERATIONS,ENHANCED CARE SERVICES,2072691,35429.48,PP HOURS
DEPARTMENT OF HEALTH,SOUTH CENTRAL AMBULANCE NHS FOUNDATION TRUST,22/06/2023,PRIVATE AMBULANCE PROVIDERS,OPERATIONS,MEDICARE EMS GROUP UK LTD,2072695,67875.76,PP HOURS
DEPARTMENT OF HEALTH,SOUTH CENTRAL AMBULANCE NHS FOUNDATION TRUST,22/06/2023,PRIVATE AMBULANCE PROVIDERS,OPERATIONS,SOUTHERN MEDICAL RESCUE,2072696,53905.88,PP HOURS
DEPARTMENT OF HEALTH,SOUTH CENTRAL AMBULANCE NHS FOUNDATION TRUST,22/06/2023,IT,ICT,BYTES SOFTWARE SERVICES LTD,2074759,94255.49,COMPUTER SOFTWARE LICENCE FEE
DEPARTMENT OF HEALTH,SOUTH CENTRAL AMBULANCE NHS FOUNDATION TRUST,22/06/2023,IT,ICT,BYTES SOFTWARE SERVICES LTD,2074759,12290.30,COMPUTER SOFTWARE LICENCE FEE
DEPARTMENT OF HEALTH,SOUTH CENTRAL AMBULANCE NHS FOUNDATION TRUST,22/06/2023,IT,ICT,BYTES SOFTWARE SERVICES LTD,2074759,93403.10,COMPUTER SOFTWARE LICENCE FEE
DEPARTMENT OF HEALTH,SOUTH CENTRAL AMBULANCE NHS FOUNDATION TRUST,22/06/2023,IT,ICT,BYTES SOFTWARE SERVICES LTD,2074759,8249.47,COMPUTER SOFTWARE LICENCE FEE
DEPARTMENT OF HEALTH,SOUTH CENTRAL AMBULANCE NHS FOUNDATION TRUST,22/06/2023,PRIVATE AMBULANCE PROVIDERS,OPERATIONS,TOTALMOBILE LTD,2073952,6225.13,CONTRACT SOFTWARE
DEPARTMENT OF HEALTH,SOUTH CENTRAL AMBULANCE NHS FOUNDATION TRUST,22/06/2023,PRIVATE AMBULANCE PROVIDERS,OPERATIONS,TOTALMOBILE LTD,2073952,2350.51,CONTRACT SOFTWARE
DEPARTMENT OF HEALTH,SOUTH CENTRAL AMBULANCE NHS FOUNDATION TRUST,22/06/2023,PRIVATE AMBULANCE PROVIDERS,OPERATIONS,TOTALMOBILE LTD,2073952,18614.34,CONTRACT SOFTWARE
DEPARTMENT OF HEALTH,SOUTH CENTRAL AMBULANCE NHS FOUNDATION TRUST,22/06/2023,PRIVATE AMBULANCE PROVIDERS,OPERATIONS,TOTALMOBILE LTD,2073952,3724.84,CONTRACT SOFTWARE
DEPARTMENT OF HEALTH,SOUTH CENTRAL AMBULANCE NHS FOUNDATION TRUST,22/06/2023,PRIVATE AMBULANCE PROVIDERS,OPERATIONS,TOTALMOBILE LTD,2073952,2168.17,CONTRACT SOFTWARE
DEPARTMENT OF HEALTH,SOUTH CENTRAL AMBULANCE NHS FOUNDATION TRUST,22/06/2023,PRIVATE AMBULANCE PROVIDERS,OPERATIONS,TOTALMOBILE LTD,2073952,891.78,CONTRACT SOFTWARE
DEPARTMENT OF HEALTH,SOUTH CENTRAL AMBULANCE NHS FOUNDATION TRUST,22/06/2023,PRIVATE AMBULANCE PROVIDERS,OPERATIONS,TOTALMOBILE LTD,2073952,2173.44,CONTRACT SOFTWARE
DEPARTMENT OF HEALTH,SOUTH CENTRAL AMBULANCE NHS FOUNDATION TRUST,08/06/2023,VEHICLE LEASING,NON EMERGENCY SERVICES,SIEMENS FINANCIAL SERVICES,2073961,19308.00,VEHICLE LEASE COSTS
DEPARTMENT OF HEALTH,SOUTH CENTRAL AMBULANCE NHS FOUNDATION TRUST,08/06/2023,VEHICLE LEASING,NON EMERGENCY SERVICES,SIEMENS FINANCIAL SERVICES,2073961,19868.40,VEHICLE LEASE COSTS
DEPARTMENT OF HEALTH,SOUTH CENTRAL AMBULANCE NHS FOUNDATION TRUST,08/06/2023,VEHICLE LEASING,NON EMERGENCY SERVICES,SIEMENS FINANCIAL SERVICES,2073962,18450.00,VEHICLE LEASE COSTS
DEPARTMENT OF HEALTH,SOUTH CENTRAL AMBULANCE NHS FOUNDATION TRUST,08/06/2023,VEHICLE LEASING,NON EMERGENCY SERVICES,SIEMENS FINANCIAL SERVICES,2073962,18212.70,VEHICLE LEASE COSTS
DEPARTMENT OF HEALTH,SOUTH CENTRAL AMBULANCE NHS FOUNDATION TRUST,15/06/2023,RENTS,"FINANCE, ESTATES AND PROCUREMENT",OVINGTON PARK PROPERTIES 2013  LTD,2074732,78000.00,RENT - SEHRC
DEPARTMENT OF HEALTH,SOUTH CENTRAL AMBULANCE NHS FOUNDATION TRUST,29/06/2023,SERVICE CHARGES,"FINANCE, ESTATES AND PROCUREMENT",J.TOMLINSON - INTEGRATED BUILDING SOLUTIONS,2074784,50829.82,BUILDING MAINTENANCE CONTRACT
DEPARTMENT OF HEALTH,SOUTH CENTRAL AMBULANCE NHS FOUNDATION TRUST,22/06/2023,PRIVATE AMBULANCE PROVIDERS,OPERATIONS,PHOENIX RESPONSE SERVICES LTD,2074753,61193.66,PP HOURS
DEPARTMENT OF HEALTH,SOUTH CENTRAL AMBULANCE NHS FOUNDATION TRUST,08/06/2023,DOMESTIC SERVICE CONTRACT,"FINANCE, ESTATES AND PROCUREMENT",NEXGEN FACILITIES SERVICES,2074807,59572.80,CLEANING CONTRACT
DEPARTMENT OF HEALTH,SOUTH CENTRAL AMBULANCE NHS FOUNDATION TRUST,08/06/2023,DOMESTIC SERVICE CONTRACT,"FINANCE, ESTATES AND PROCUREMENT",NEXGEN FACILITIES SERVICES,2074809,59572.80,CLEANING CONTRACT
DEPARTMENT OF HEALTH,SOUTH CENTRAL AMBULANCE NHS FOUNDATION TRUST,08/06/2023,DOMESTIC SERVICE CONTRACT,"FINANCE, ESTATES AND PROCUREMENT",NEXGEN FACILITIES SERVICES,2074810,60828.00,CLEANING CONTRACT
DEPARTMENT OF HEALTH,SOUTH CENTRAL AMBULANCE NHS FOUNDATION TRUST,08/06/2023,DOMESTIC SERVICE CONTRACT,"FINANCE, ESTATES AND PROCUREMENT",NEXGEN FACILITIES SERVICES,2074812,60828.00,CLEANING CONTRACT
DEPARTMENT OF HEALTH,SOUTH CENTRAL AMBULANCE NHS FOUNDATION TRUST,29/06/2023,IT,ICT,EUROPEAN ELECTRONIQUE LTD,2076959,51801.35,DATA LINES RENTAL & CALLS
DEPARTMENT OF HEALTH,SOUTH CENTRAL AMBULANCE NHS FOUNDATION TRUST,22/06/2023,FLEET SERVICES,OPERATIONS,SOUTH CENTRAL FLEET SERVICES LTD,2077674,27683.22,VEHICLE LEASE COSTS
DEPARTMENT OF HEALTH,SOUTH CENTRAL AMBULANCE NHS FOUNDATION TRUST,22/06/2023,FLEET SERVICES,OPERATIONS,SOUTH CENTRAL FLEET SERVICES LTD,2077674,2392.80,VEHICLE LEASE COSTS
DEPARTMENT OF HEALTH,SOUTH CENTRAL AMBULANCE NHS FOUNDATION TRUST,22/06/2023,FLEET SERVICES,OPERATIONS,SOUTH CENTRAL FLEET SERVICES LTD,2077674,6752.00,VEHICLE LEASE COSTS
DEPARTMENT OF HEALTH,SOUTH CENTRAL AMBULANCE NHS FOUNDATION TRUST,22/06/2023,FLEET SERVICES,OPERATIONS,SOUTH CENTRAL FLEET SERVICES LTD,2077674,3910.75,VEHICLE LEASE COSTS
DEPARTMENT OF HEALTH,SOUTH CENTRAL AMBULANCE NHS FOUNDATION TRUST,22/06/2023,VEHICLE LEASING,OPERATIONS,SOUTH CENTRAL FLEET SERVICES LTD,2077675,23972.40,VEHICLE LEASE COSTS
DEPARTMENT OF HEALTH,SOUTH CENTRAL AMBULANCE NHS FOUNDATION TRUST,22/06/2023,VEHICLE LEASING,OPERATIONS,SOUTH CENTRAL FLEET SERVICES LTD,2077675,5182.20,VEHICLE LEASE COSTS
DEPARTMENT OF HEALTH,SOUTH CENTRAL AMBULANCE NHS FOUNDATION TRUST,22/06/2023,VEHICLE LEASING,OPERATIONS,SOUTH CENTRAL FLEET SERVICES LTD,2077675,32808.60,VEHICLE LEASE COSTS
DEPARTMENT OF HEALTH,SOUTH CENTRAL AMBULANCE NHS FOUNDATION TRUST,22/06/2023,VEHICLE LEASING,OPERATIONS,SOUTH CENTRAL FLEET SERVICES LTD,2077675,5182.20,VEHICLE LEASE COSTS
DEPARTMENT OF HEALTH,SOUTH CENTRAL AMBULANCE NHS FOUNDATION TRUST,22/06/2023,VEHICLE LEASING,OPERATIONS,SOUTH CENTRAL FLEET SERVICES LTD,2077675,20384.40,VEHICLE LEASE COSTS
DEPARTMENT OF HEALTH,SOUTH CENTRAL AMBULANCE NHS FOUNDATION TRUST,22/06/2023,VEHICLE LEASING,OPERATIONS,SOUTH CENTRAL FLEET SERVICES LTD,2077675,3454.80,VEHICLE LEASE COSTS
DEPARTMENT OF HEALTH,SOUTH CENTRAL AMBULANCE NHS FOUNDATION TRUST,22/06/2023,VEHICLE LEASING,OPERATIONS,SOUTH CENTRAL FLEET SERVICES LTD,2077675,11959.50,VEHICLE LEASE COSTS
DEPARTMENT OF HEALTH,SOUTH CENTRAL AMBULANCE NHS FOUNDATION TRUST,22/06/2023,VEHICLE LEASING,OPERATIONS,SOUTH CENTRAL FLEET SERVICES LTD,2077675,1727.40,VEHICLE LEASE COSTS
DEPARTMENT OF HEALTH,SOUTH CENTRAL AMBULANCE NHS FOUNDATION TRUST,22/06/2023,PRIVATE AMBULANCE PROVIDERS,OPERATIONS,ELITE EVENT MEDICAL SERVICES LTD,2077692,31438.88,PP HOURS
DEPARTMENT OF HEALTH,SOUTH CENTRAL AMBULANCE NHS FOUNDATION TRUST,22/06/2023,PRIVATE AMBULANCE PROVIDERS,OPERATIONS,ELITE EVENT MEDICAL SERVICES LTD,2077692,27977.11,PP HOURS
DEPARTMENT OF HEALTH,SOUTH CENTRAL AMBULANCE NHS FOUNDATION TRUST,22/06/2023,PRIVATE AMBULANCE PROVIDERS,OPERATIONS,ELITE EVENT MEDICAL SERVICES LTD,2077692,23343.96,PP HOURS
DEPARTMENT OF HEALTH,SOUTH CENTRAL AMBULANCE NHS FOUNDATION TRUST,22/06/2023,PRIVATE AMBULANCE PROVIDERS,OPERATIONS,PHOENIX RESPONSE SERVICES LTD,2077696,25203.18,PP HOURS
DEPARTMENT OF HEALTH,SOUTH CENTRAL AMBULANCE NHS FOUNDATION TRUST,29/06/2023,PRIVATE AMBULANCE PROVIDERS,OPERATIONS,ELITE EVENT MEDICAL SERVICES LTD,2077698,73027.22,PP HOURS
DEPARTMENT OF HEALTH,SOUTH CENTRAL AMBULANCE NHS FOUNDATION TRUST,29/06/2023,PRIVATE AMBULANCE PROVIDERS,OPERATIONS,MEDICARE EMS GROUP UK LTD,2077701,37798.56,PP HOURS
DEPARTMENT OF HEALTH,SOUTH CENTRAL AMBULANCE NHS FOUNDATION TRUST,29/06/2023,PRIVATE AMBULANCE PROVIDERS,OPERATIONS,PHOENIX RESPONSE SERVICES LTD,2077702,29549.50,PP HOURS
DEPARTMENT OF HEALTH,SOUTH CENTRAL AMBULANCE NHS FOUNDATION TRUST,29/06/2023,PRIVATE AMBULANCE PROVIDERS,OPERATIONS,SOUTHERN MEDICAL RESCUE,2077703,29081.74,PP HOURS
DEPARTMENT OF HEALTH,SOUTH CENTRAL AMBULANCE NHS FOUNDATION TRUST,15/06/2023,RENTS,"FINANCE, ESTATES AND PROCUREMENT",SAVILLS COMMERCIAL - BASINGSTOKE PTS RENT,2078498,27664.20,BASINGSTOKE PTS RENT CHARGE
DEPARTMENT OF HEALTH,SOUTH CENTRAL AMBULANCE NHS FOUNDATION TRUST,15/06/2023,SERVICE CHARGES,"FINANCE, ESTATES AND PROCUREMENT",SAVILLS COMMERCIAL - BASINGSTOKE PTS RENT,2078498,1711.20,BASINGSTOKE PTS RENT CHARGE
DEPARTMENT OF HEALTH,SOUTH CENTRAL AMBULANCE NHS FOUNDATION TRUST,15/06/2023,RENTS,"FINANCE, ESTATES AND PROCUREMENT",BEELINE PROPERTIES LTD,2078500,44850.00,RENT - EDUCATION FACILITY
DEPARTMENT OF HEALTH,SOUTH CENTRAL AMBULANCE NHS FOUNDATION TRUST,15/06/2023,IT,OPERATIONS,ORTIVUS UK LTD,2081235,10535.00,DATA HOSTING & MANAGED SERVICE
DEPARTMENT OF HEALTH,SOUTH CENTRAL AMBULANCE NHS FOUNDATION TRUST,15/06/2023,IT,OPERATIONS,ORTIVUS UK LTD,2081235,44693.10,DATA HOSTING & MANAGED SERVICE
DEPARTMENT OF HEALTH,SOUTH CENTRAL AMBULANCE NHS FOUNDATION TRUST,15/06/2023,IT,OPERATIONS,ORTIVUS UK LTD,2081235,103.92,DATA HOSTING & MANAGED SERVICE
DEPARTMENT OF HEALTH,SOUTH CENTRAL AMBULANCE NHS FOUNDATION TRUST,15/06/2023,IT,OPERATIONS,ORTIVUS UK LTD,2081235,51.96,DATA HOSTING & MANAGED SERVICE
DEPARTMENT OF HEALTH,SOUTH CENTRAL AMBULANCE NHS FOUNDATION TRUST,15/06/2023,IT,OPERATIONS,ORTIVUS UK LTD,2081235,25.98,DATA HOSTING & MANAGED SERVICE
DEPARTMENT OF HEALTH,SOUTH CENTRAL AMBULANCE NHS FOUNDATION TRUST,15/06/2023,IT,OPERATIONS,ORTIVUS UK LTD,2081236,10535.00,DATA HOSTING & MANAGED SERVICE
DEPARTMENT OF HEALTH,SOUTH CENTRAL AMBULANCE NHS FOUNDATION TRUST,15/06/2023,IT,OPERATIONS,ORTIVUS UK LTD,2081236,44693.10,DATA HOSTING & MANAGED SERVICE
DEPARTMENT OF HEALTH,SOUTH CENTRAL AMBULANCE NHS FOUNDATION TRUST,15/06/2023,IT,OPERATIONS,ORTIVUS UK LTD,2081236,103.92,DATA HOSTING & MANAGED SERVICE
DEPARTMENT OF HEALTH,SOUTH CENTRAL AMBULANCE NHS FOUNDATION TRUST,15/06/2023,IT,OPERATIONS,ORTIVUS UK LTD,2081236,51.96,DATA HOSTING & MANAGED SERVICE
DEPARTMENT OF HEALTH,SOUTH CENTRAL AMBULANCE NHS FOUNDATION TRUST,15/06/2023,IT,OPERATIONS,ORTIVUS UK LTD,2081236,25.98,DATA HOSTING & MANAGED SERVICE
DEPARTMENT OF HEALTH,SOUTH CENTRAL AMBULANCE NHS FOUNDATION TRUST,15/06/2023,IT,OPERATIONS,ORTIVUS UK LTD,2081237,10535.00,DATA HOSTING & MANAGED SERVICE
DEPARTMENT OF HEALTH,SOUTH CENTRAL AMBULANCE NHS FOUNDATION TRUST,15/06/2023,IT,OPERATIONS,ORTIVUS UK LTD,2081237,44693.10,DATA HOSTING & MANAGED SERVICE
DEPARTMENT OF HEALTH,SOUTH CENTRAL AMBULANCE NHS FOUNDATION TRUST,15/06/2023,IT,OPERATIONS,ORTIVUS UK LTD,2081237,103.92,DATA HOSTING & MANAGED SERVICE
DEPARTMENT OF HEALTH,SOUTH CENTRAL AMBULANCE NHS FOUNDATION TRUST,15/06/2023,IT,OPERATIONS,ORTIVUS UK LTD,2081237,51.96,DATA HOSTING & MANAGED SERVICE
DEPARTMENT OF HEALTH,SOUTH CENTRAL AMBULANCE NHS FOUNDATION TRUST,15/06/2023,IT,OPERATIONS,ORTIVUS UK LTD,2081237,25.98,DATA HOSTING & MANAGED SERVICE
DEPARTMENT OF HEALTH,SOUTH CENTRAL AMBULANCE NHS FOUNDATION TRUST,15/06/2023,CERTIFICATES,CORPORATE AFFAIRS,CARE QUALITY COMMISSION,2081282,247471.00,CQC FEES
DEPARTMENT OF HEALTH,SOUTH CENTRAL AMBULANCE NHS FOUNDATION TRUST,22/06/2023,NHS SUBCONTRACTORS,OPERATIONS,ISLE OF WIGHT NHS TRUST,2082021,125464.14,NHS SUBCONTRACT
DEPARTMENT OF HEALTH,SOUTH CENTRAL AMBULANCE NHS FOUNDATION TRUST,22/06/2023,TEMPS CLINICAL,OPERATIONS,FRIMLEY PRIMARY CARE SERVICE,2083540,113640.00,URGENT CARE SUB-CONTRACT
DEPARTMENT OF HEALTH,SOUTH CENTRAL AMBULANCE NHS FOUNDATION TRUST,22/06/2023,RENTS,"FINANCE, ESTATES AND PROCUREMENT",WORKMAN-NURSLING,2083541,64290.00,RENT - NURSLING
DEPARTMENT OF HEALTH,SOUTH CENTRAL AMBULANCE NHS FOUNDATION TRUST,29/06/2023,INSURANCE PREMIUM,CORPORATE AFFAIRS,NHS RESOLUTION,2083548,18999.50,"NHSLA LTPS, CNST & PES "
DEPARTMENT OF HEALTH,SOUTH CENTRAL AMBULANCE NHS FOUNDATION TRUST,29/06/2023,INSURANCE PREMIUM,CORPORATE AFFAIRS,NHS RESOLUTION,2083548,261205.20,"NHSLA LTPS, CNST & PES "
DEPARTMENT OF HEALTH,SOUTH CENTRAL AMBULANCE NHS FOUNDATION TRUST,29/06/2023,INSURANCE PREMIUM,CORPORATE AFFAIRS,NHS RESOLUTION,2083548,1197.30,"NHSLA LTPS, CNST & PES "
DEPARTMENT OF HEALTH,SOUTH CENTRAL AMBULANCE NHS FOUNDATION TRUST,22/06/2023,PRIVATE AMBULANCE PROVIDERS,OPERATIONS,ELITE EVENT MEDICAL SERVICES LTD,2083552,33671.43,PP HOURS
DEPARTMENT OF HEALTH,SOUTH CENTRAL AMBULANCE NHS FOUNDATION TRUST,22/06/2023,FIRE SERVICE RESPONDERS,OPERATIONS,HAMPSHIRE FIRE AND RESCUE SERVICE,2085488,282254.62,FIRE SERVICE RESPONDERS
DEPARTMENT OF HEALTH,SOUTH CENTRAL AMBULANCE NHS FOUNDATION TRUST,22/06/2023,TAXI HIRE - PTS,NON EMERGENCY SERVICES,GREEN METRO CARS READING LTD,2085518,27734.65,PP HOURS
DEPARTMENT OF HEALTH,SOUTH CENTRAL AMBULANCE NHS FOUNDATION TRUST,22/06/2023,PTS PRIVATE PROVIDERS,NON EMERGENCY SERVICES,PTS-247 LTD,2087428,82602.00,PP HOURS
DEPARTMENT OF HEALTH,SOUTH CENTRAL AMBULANCE NHS FOUNDATION TRUST,22/06/2023,TAXI HIRE - PTS,NON EMERGENCY SERVICES,247 TRANSPORT SOLUTIONS LTD,2087472,25888.98,PP HOURS
DEPARTMENT OF HEALTH,SOUTH CENTRAL AMBULANCE NHS FOUNDATION TRUST,22/06/2023,TAXI HIRE - PTS,NON EMERGENCY SERVICES,SOUTHERN TAXIS (BRIGHTON) LTD T/A CITY CABS BRIGHTON,2087473,34649.52,PP HOURS
DEPARTMENT OF HEALTH,SOUTH CENTRAL AMBULANCE NHS FOUNDATION TRUST,22/06/2023,TAXI HIRE - PTS,NON EMERGENCY SERVICES, (WOKING CARS) SA TAXIS LTD,2087521,36429.75,PP HOURS
DEPARTMENT OF HEALTH,SOUTH CENTRAL AMBULANCE NHS FOUNDATION TRUST,22/06/2023,PTS PRIVATE PROVIDERS,NON EMERGENCY SERVICES,F.A.S.T. AMBULANCE SERVICE LTD,2087536,27644.90,PP HOURS
DEPARTMENT OF HEALTH,SOUTH CENTRAL AMBULANCE NHS FOUNDATION TRUST,29/06/2023,PTS PRIVATE PROVIDERS,NON EMERGENCY SERVICES,F.A.S.T. AMBULANCE SERVICE LTD,2087537,28400.11,PP HOURS
DEPARTMENT OF HEALTH,SOUTH CENTRAL AMBULANCE NHS FOUNDATION TRUST,29/06/2023,PTS PRIVATE PROVIDERS,NON EMERGENCY SERVICES,ELITE MEDICAL AND AMBULANCE SERVICE LTD,2087543,44656.31,PP HOURS
DEPARTMENT OF HEALTH,SOUTH CENTRAL AMBULANCE NHS FOUNDATION TRUST,22/06/2023,PTS PRIVATE PROVIDERS,NON EMERGENCY SERVICES,MEDI4 AMBULANCE SERVICES LTD,2087545,26564.98,PP HOURS
DEPARTMENT OF HEALTH,SOUTH CENTRAL AMBULANCE NHS FOUNDATION TRUST,29/06/2023,PTS PRIVATE PROVIDERS,NON EMERGENCY SERVICES,STREAMLINE (KENT) LTD,2087548,34533.10,PP HOURS
DEPARTMENT OF HEALTH,SOUTH CENTRAL AMBULANCE NHS FOUNDATION TRUST,22/06/2023,TEMPS CLINICAL,OPERATIONS,EAST BERKSHIRE PRIMARY CARE(OUT OF HOURS SERVICE),2088348,185555.28,GP COVER
DEPARTMENT OF HEALTH,SOUTH CENTRAL AMBULANCE NHS FOUNDATION TRUST,29/06/2023,PTS PRIVATE PROVIDERS,NON EMERGENCY SERVICES,STREAMLINE (KENT) LTD,2090666,39121.84,PP HOURS
DEPARTMENT OF HEALTH,SOUTH CENTRAL AMBULANCE NHS FOUNDATION TRUST,29/06/2023,VEHICLE LEASING,NON EMERGENCY SERVICES,DE LAGE LANDEN LEASING LTD,2090699,213727.11,VEHICLE LEASE COSTS
DEPARTMENT OF HEALTH,SOUTH CENTRAL AMBULANCE NHS FOUNDATION TRUST,29/06/2023,VEHICLE LEASING,NON EMERGENCY SERVICES,DE LAGE LANDEN LEASING LTD,2090699,41752.80,VEHICLE LEASE COSTS
DEPARTMENT OF HEALTH,SOUTH CENTRAL AMBULANCE NHS FOUNDATION TRUST,29/06/2023,VEHICLE LEASING,NON EMERGENCY SERVICES,DE LAGE LANDEN LEASING LTD,2090699,1692.34,VEHICLE LEASE COSTS
DEPARTMENT OF HEALTH,SOUTH CENTRAL AMBULANCE NHS FOUNDATION TRUST,29/06/2023,BUILDING MAINTENANCE CONT,"FINANCE, ESTATES AND PROCUREMENT",J.TOMLINSON - INTEGRATED BUILDING SOLUTIONS,2090722,110652.19,BUILDING MAINTENANCE CONTRACT
DEPARTMENT OF HEALTH,SOUTH CENTRAL AMBULANCE NHS FOUNDATION TRUST,29/06/2023,IT,OPERATIONS,ORTIVUS UK LTD,2093118,10535.00,DATA HOSTING & MANAGED SERVICE
DEPARTMENT OF HEALTH,SOUTH CENTRAL AMBULANCE NHS FOUNDATION TRUST,29/06/2023,IT,OPERATIONS,ORTIVUS UK LTD,2093118,44693.10,DATA HOSTING & MANAGED SERVICE
DEPARTMENT OF HEALTH,SOUTH CENTRAL AMBULANCE NHS FOUNDATION TRUST,29/06/2023,IT,OPERATIONS,ORTIVUS UK LTD,2093118,103.92,DATA HOSTING & MANAGED SERVICE
DEPARTMENT OF HEALTH,SOUTH CENTRAL AMBULANCE NHS FOUNDATION TRUST,29/06/2023,IT,OPERATIONS,ORTIVUS UK LTD,2093118,51.96,DATA HOSTING & MANAGED SERVICE
DEPARTMENT OF HEALTH,SOUTH CENTRAL AMBULANCE NHS FOUNDATION TRUST,29/06/2023,IT,OPERATIONS,ORTIVUS UK LTD,2093118,25.98,DATA HOSTING & MANAGED SERVICE
DEPARTMENT OF HEALTH,SOUTH CENTRAL AMBULANCE NHS FOUNDATION TRUST,29/06/2023,IT,OPERATIONS,ORTIVUS UK LTD,2093119,10535.00,DATA HOSTING & MANAGED SERVICE
DEPARTMENT OF HEALTH,SOUTH CENTRAL AMBULANCE NHS FOUNDATION TRUST,29/06/2023,IT,OPERATIONS,ORTIVUS UK LTD,2093119,44693.10,DATA HOSTING & MANAGED SERVICE
DEPARTMENT OF HEALTH,SOUTH CENTRAL AMBULANCE NHS FOUNDATION TRUST,29/06/2023,IT,OPERATIONS,ORTIVUS UK LTD,2093119,103.92,DATA HOSTING & MANAGED SERVICE
DEPARTMENT OF HEALTH,SOUTH CENTRAL AMBULANCE NHS FOUNDATION TRUST,29/06/2023,IT,OPERATIONS,ORTIVUS UK LTD,2093119,51.96,DATA HOSTING & MANAGED SERVICE
DEPARTMENT OF HEALTH,SOUTH CENTRAL AMBULANCE NHS FOUNDATION TRUST,29/06/2023,IT,OPERATIONS,ORTIVUS UK LTD,2093119,25.98,DATA HOSTING & MANAGED SERVICE
DEPARTMENT OF HEALTH,SOUTH CENTRAL AMBULANCE NHS FOUNDATION TRUST,29/06/2023,RENTS,"FINANCE, ESTATES AND PROCUREMENT",A W JAMES LTD,2093162,58999.50,RENT MILTON KEYNES 111
DEPARTMENT OF HEALTH,SOUTH CENTRAL AMBULANCE NHS FOUNDATION TRUST,29/06/2023,RENTS,"FINANCE, ESTATES AND PROCUREMENT",LMF HOLDINGS LTD T/A FLETCHER KING CHARTERED SURVEYORS,2093169,47452.80,RENT AND SERVICE CHARGE SOUTH
DEPARTMENT OF HEALTH,SOUTH CENTRAL AMBULANCE NHS FOUNDATION TRUST,29/06/2023,SERVICE CHARGES,"FINANCE, ESTATES AND PROCUREMENT",LMF HOLDINGS LTD T/A FLETCHER KING CHARTERED SURVEYORS,2093169,20373.14,RENT AND SERVICE CHARGE SOUTH
DEPARTMENT OF HEALTH,SOUTH CENTRAL AMBULANCE NHS FOUNDATION TRUST,12/06/2023,INSURANCE PREMIUM,OPERATIONS,JLT--QBE-STANDING ORDER,2051399,120565.33,MOTOR FLEET INSURANCE
DEPARTMENT OF HEALTH,SOUTH CENTRAL AMBULANCE NHS FOUNDATION TRUST,15/06/2023,DIESEL,OPERATIONS,ALLSTAR FUEL CARD SERVICES- DD ONLY,2081518,98712.36,FUEL
DEPARTMENT OF HEALTH,SOUTH CENTRAL AMBULANCE NHS FOUNDATION TRUST,22/06/2023,DIESEL,OPERATIONS,ALLSTAR FUEL CARD SERVICES- DD ONLY,2088423,95345.22,FUEL
DEPARTMENT OF HEALTH,SOUTH CENTRAL AMBULANCE NHS FOUNDATION TRUST,19/06/2023,CARD EXPENSES,CORPORATE,NATIONAL WESTMINSTER BANK -DIRECT DEBIT,2083452,45151.60,PURCHASE CARD PAYMENTS
DEPARTMENT OF HEALTH,SOUTH CENTRAL AMBULANCE NHS FOUNDATION TRUST,29/06/2023,DIESEL,OPERATIONS,ALLSTAR FUEL CARD SERVICES- DD ONLY,2093219,99131.78,FUEL
DEPARTMENT OF HEALTH,SOUTH CENTRAL AMBULANCE NHS FOUNDATION TRUST,08/06/2023,DIESEL,OPERATIONS,ALLSTAR FUEL CARD SERVICES- DD ONLY,2074918,101311.33,FUEL
